bitfinex/quotes_ETHUSD_20251120
["timestamp","ask_amount","ask_price","bid_price","bid_amount"]
[1763664636064,0.74053502,2817.0,2816.6,0.001]
[1763664636229,0.74053502,2817.1,2816.6,0.001]
[1763664636426,0.74053502,2817.0,2816.7,0.405504]
[1763664636642,0.74053502,2816.9,2816.8,0.903904]
[1763664636937,0.74053502,2817.2,2816.9,0.405504]
[1763664637153,0.7526166,2817.4,2816.9,0.903904]
[1763664637346,0.7526166,2817.3,2816.9,0.903904]
[1763664637555,0.7526166,2817.2,2817.0,0.4984]
[1763664637764,0.7526166,2817.1,2817.0,0.903904]
[1763664638072,0.94676194,2817.6,2817.4,0.1716]
[1763664638318,0.75303073,2817.5,2817.4,0.1716]
[1763664638591,0.75303073,2817.5,2817.4,1.054104]
[1763664642598,0.002,2818.5,2817.5,0.405504]
[1763664642599,0.94676194,2817.9,2817.5,0.405504]
[1763664642807,1.69978382,2817.8,2817.5,0.405504]
[1763664642978,1.69978382,2817.7,2817.5,0.405504]
[1763664643168,1.69978382,2817.6,2817.5,0.405504]
[1763664643507,1.69978382,2817.6,2817.5,0.882504]
[1763664643872,1.69978382,2817.6,2817.5,1.366904]
[1763664644077,1.69462008,2817.6,2817.5,0.889904]
[1763664644378,0.75302188,2817.6,2817.5,1.366904]
[1763664645760,0.75302188,2817.6,2817.5,0.889904]
[1763664645960,1.69545733,2817.6,2817.5,1.366904]
[1763664646573,0.75302188,2817.6,2817.5,1.366904]
[1763664646774,1.69619363,2817.6,2817.5,1.366904]
[1763664647497,0.75302188,2817.6,2817.5,1.366904]
[1763664647704,1.69619363,2817.6,2817.5,1.366904]
[1763664647906,0.75302188,2817.6,2817.5,1.366904]
[1763664648287,1.69619363,2817.6,2817.5,1.366904]
[1763664648490,0.75302188,2817.6,2817.5,1.366904]
[1763664649886,0.75302188,2817.6,2817.5,1.32640927]
[1763664650495,1.31002841,2817.6,2817.5,1.32640927]
[1763664651315,1.31002841,2817.6,2816.8,0.1716]
[1763664651316,2.45354843,2817.6,2816.8,0.1716]
[1763664651609,0.94417474,2817.4,2816.8,0.1726]
[1763664651813,0.75302188,2817.3,2816.9,0.477]
[1763664651998,0.75302188,2817.2,2816.9,0.477]
[1763664652167,1.50118127,2817.6,2817.0,0.405504]
[1763664652370,1.50118127,2817.6,2817.5,0.889904]
[1763664652371,0.55700653,2817.6,2817.5,0.889904]
[1763664652580,1.31249991,2817.6,2817.5,0.889904]
[1763664652784,1.31249991,2817.6,2817.5,1.366904]
[1763664653388,1.31249991,2817.6,2817.1,0.477]
[1763664653597,0.75549338,2817.5,2817.2,0.405504]
[1763664653799,0.75549338,2817.4,2817.2,0.405504]
[1763664654014,1.50118127,2817.6,2816.8,1.07959264]
[1763664654015,1.7000557,2817.3,2816.9,0.405504]
[1763664654200,2.45053041,2817.6,2816.9,0.882504]
[1763664654201,0.75549338,2817.2,2816.9,0.882504]
[1763664654397,0.75549338,2817.2,2816.8,0.1726]
[1763664654398,0.75549338,2817.1,2816.8,0.1726]
[1763664654625,0.75549338,2817.0,2816.9,0.477]
[1763664655014,0.75549338,2817.0,2816.9,1.366904]
[1763664656131,0.75549338,2817.0,2816.9,3.28293948]
[1763664656289,0.75549338,2817.0,2816.9,1.366904]
[1763664656488,0.75549338,2817.0,2816.9,0.889904]
[1763664656489,1.7000557,2817.0,2816.9,0.889904]
[1763664657042,0.75549338,2817.0,2816.9,1.366904]
[1763664657218,0.75549338,2817.0,2816.8,0.1726]
[1763664657387,1.70218043,2816.9,2816.8,0.1726]
[1763664657723,1.70204657,2816.9,2816.8,0.1726]
[1763664658330,0.75549338,2816.9,2816.8,0.001]
[1763664658501,2.9777445,2816.9,2816.8,0.4854]
[1763664658927,2.9777445,2816.9,2816.8,0.001]
[1763664658928,2.34678928,2816.9,2816.8,0.001]
[1763664659097,1.08422062,2816.9,2816.8,0.001]
[1763664659886,1.08422062,2816.9,2816.6,0.405504]
[1763664660088,1.89352388,2817.0,2816.9,0.405504]
[1763664660089,1.26207782,2817.0,2816.9,0.405504]
[1763664660288,2.34803619,2817.0,2816.9,0.889904]
[1763664660491,2.34803619,2817.0,2816.4,0.001]
[1763664660693,0.94603739,2816.8,2816.4,0.001]
[1763664660934,0.94528259,2816.5,2816.4,0.001]
[1763664661119,1.08561077,2816.5,2816.4,0.001]
[1763664661295,0.75730202,2816.5,2816.4,0.890904]
[1763664661902,0.94461987,2817.0,2816.5,0.405504]
[1763664662130,0.75580886,2816.9,2816.5,1.15054406]
[1763664662492,1.08386929,2816.8,2816.4,0.001]
[1763664662727,1.08386929,2816.7,2816.4,0.001]
[1763664662929,0.75580886,2816.6,2816.4,0.001]
[1763664663232,1.53653068,2816.5,2816.4,0.001]
[1763664663730,2.34483614,2816.5,2816.4,0.001]
[1763664664320,3.28827041,2816.5,2816.4,0.001]
[1763664664556,2.01702101,2816.5,2816.4,0.001]
[1763664664736,30.0,2816.4,2815.0,0.05]
[1763664664921,0.1921,2815.2,2815.0,0.05]
[1763664665596,0.1921,2815.4,2815.0,0.05]
[1763664666102,0.4653,2815.3,2815.0,0.05]
[1763664666590,0.1921,2815.4,2815.0,0.05]
[1763664667041,0.1921,2815.7,2815.0,0.05]
[1763664667203,0.4653,2815.6,2815.0,0.05]
[1763664667391,0.1921,2815.7,2815.1,0.1655]
[1763664667592,0.94224034,2816.6,2815.5,7.64393171]
[1763664667793,0.1921,2817.2,2815.1,0.1655]
[1763664667794,1.13434034,2817.4,2816.5,0.1655]
[1763664668036,0.32761523,2817.3,2816.6,0.405504]
[1763664668190,0.32755798,2817.5,2816.5,0.1655]
[1763664668411,0.1921,2817.9,2816.3,0.405504]
[1763664668605,0.6644,2817.9,2816.6,0.405504]
[1763664668802,0.4743,2817.7,2816.6,1.31249664]
[1763664669143,0.4743,2817.7,2816.6,0.58637366]
[1763664669304,0.4747562,2817.6,2816.6,0.405504]
[1763664669505,0.80231418,2817.6,2816.6,0.405504]
[1763664669725,0.4723,2817.5,2816.4,0.405504]
[1763664669927,0.79985798,2817.5,2816.4,0.36992262]
[1763664670129,0.557203,2817.3,2816.5,0.4962]
[1763664670442,0.4743,2817.7,2816.5,0.4962]
[1763664670740,0.4723,2817.6,2816.2,0.1655]
[1763664670904,0.4723,2817.6,2815.5,0.69642622]
[1763664670905,22.117,2817.5,2815.7,0.161]
[1763664671109,3.38362627,2817.4,2815.7,0.161]
[1763664671308,0.32742371,2817.3,2816.1,0.001]
[1763664671607,0.32742371,2817.2,2816.1,0.001]
[1763664671809,0.1901,2816.2,2816.1,0.001]
[1763664672338,0.6624,2816.2,2816.1,0.001]
[1763664673135,0.9887855,2816.2,2816.1,0.001]
[1763664673543,1.54627613,2816.2,2816.1,0.001]
[1763664674178,1.21989063,2816.2,2816.1,0.001]
[1763664674647,0.6624,2816.2,2816.1,0.001]
[1763664676455,0.98806363,2816.2,2816.1,0.001]
[1763664677146,0.98786211,2816.2,2816.1,0.001]
[1763664677342,0.6624,2816.2,2816.1,0.001]
[1763664678391,0.55747248,2816.2,2816.1,0.001]
[1763664679353,0.55747248,2816.2,2816.1,0.1665]
[1763664679971,0.55747248,2816.2,2816.1,0.13090725]
[1763664680984,0.55747248,2816.2,2816.1,0.62710725]
[1763664681181,0.55747248,2816.2,2816.1,2.31420203]
[1763664681702,0.55747248,2816.2,2816.1,0.13090725]
[1763664682913,0.55747248,2816.2,2816.1,0.62710725]
[1763664683115,0.55747248,2816.2,2815.9,0.001]
[1763664683273,0.55747248,2816.2,2816.1,0.1309]
[1763664683908,0.55747248,2816.2,2816.1,0.6271]
[1763664685106,0.55747248,2816.2,2815.9,0.001]
[1763664685318,1.02977248,2816.2,2815.9,0.001]
[1763664685483,0.4723,2816.1,2815.9,0.001]
[1763664686011,0.55747248,2816.2,2815.9,0.001]
[1763664689537,0.488,2816.0,2815.9,0.001]
[1763664689850,1.74690884,2816.0,2815.9,0.001]
[1763664690143,0.03460226,2815.3,2814.3,1.35759264]
[1763664690450,0.03460226,2815.3,2814.3,0.4506]
[1763664690737,0.4799,2815.2,2814.2,0.6222]
[1763664692140,0.4799,2815.2,2814.2,0.1716]
[1763664693103,0.80477309,2815.2,2814.2,0.1716]
[1763664693308,0.4799,2815.2,2814.2,0.1716]
[1763664693507,0.03460226,2815.3,2813.6,0.161]
[1763664693508,30.4799,2815.1,2813.6,0.161]
[1763664693707,35.54259646,2815.1,2813.6,0.161]
[1763664693929,12.74659646,2815.1,2813.6,0.161]
[1763664694136,9.69514623,2815.1,2813.4,7.17291415]
[1763664694320,9.69514623,2815.1,2813.1,0.4506]
[1763664694321,0.93746568,2814.8,2813.1,0.4506]
[1763664694521,0.99238377,2814.7,2813.5,7.17291415]
[1763664694794,0.32468377,2814.6,2813.1,7.62351415]
[1763664694939,0.6677,2814.7,2813.5,7.17291415]
[1763664694940,0.1878,2814.7,2813.5,7.17291415]
[1763664695136,0.1878,2814.7,2813.6,1.31249664]
[1763664695339,0.1878,2814.7,2813.6,1.76309664]
[1763664695875,0.1878,2814.7,2813.7,0.4506]
[1763664696171,0.1878,2814.7,2813.3,0.4506]
[1763664696172,0.6677,2814.7,2813.3,0.4506]
[1763664696374,0.6677,2814.7,2813.3,1.35759264]
[1763664696676,0.6677,2814.7,2813.5,0.405504]
[1763664696973,0.6677,2814.7,2813.5,0.856104]
[1763664697185,0.4799,2814.6,2813.4,0.85305068]
[1763664697393,0.4799,2814.6,2813.4,1.30365068]
[1763664697542,0.80400136,2814.6,2813.2,7.62351415]
[1763664697742,0.32410136,2814.5,2813.3,0.90699264]
[1763664697938,0.4799,2814.5,2813.3,0.90699264]
[1763664698170,0.4799,2814.5,2811.2,0.69742838]
[1763664698171,0.1878,2813.4,2811.2,0.69742838]
[1763664698385,18.024,2813.3,2811.3,0.463]
[1763664698686,2.89172438,2813.2,2811.5,7.17291415]
[1763664698870,30.0,2813.0,2811.3,0.463]
[1763664699045,30.0,2813.0,2811.0,7.18155708]
[1763664699046,0.1883,2811.4,2811.0,0.00864293]
[1763664699242,0.3673226,2811.3,2811.0,0.00864293]
[1763664699468,0.93746568,2812.0,2811.0,0.00864293]
[1763664699469,0.77234938,2812.0,2811.1,7.33921415]
[1763664699676,0.1883,2812.3,2811.2,1.68807835]
[1763664699864,0.03564654,2811.1,2811.0,0.00864293]
[1763664700378,0.03564654,2811.1,2811.0,8.55154972]
[1763664700580,0.03564654,2811.1,2811.0,7.64455708]
[1763664700744,0.03564654,2811.1,2811.0,0.47164293]
[1763664701154,0.1883,2812.4,2811.0,0.47164293]
[1763664701481,0.1883,2812.4,2811.4,0.405504]
[1763664701686,0.4526,2812.3,2811.1,0.1663]
[1763664701844,0.1883,2812.4,2811.5,0.90699264]
[1763664702039,0.1883,2812.4,2811.5,1.36999264]
[1763664702685,0.1883,2812.9,2811.9,1.31249664]
[1763664702840,0.55820564,2813.0,2812.3,1.08789264]
[1763664703179,0.5580895,2813.3,2812.3,1.08789264]
[1763664703376,1.0106895,2813.3,2812.1,0.1809]
[1763664703681,22.931,2813.2,2811.8,0.1809]
[1763664703846,12.45179546,2813.1,2811.8,0.1809]
[1763664704175,0.4526,2813.1,2811.8,0.1809]
[1763664704375,0.4526,2813.0,2811.8,0.1809]
[1763664704878,0.1883,2812.9,2811.9,0.405504]
[1763664705378,0.6409,2812.9,2811.9,0.405504]
[1763664706089,0.6409,2812.9,2811.8,7.35381415]
[1763664706255,0.1883,2812.9,2811.8,1.05328068]
[1763664706458,0.1883,2812.9,2811.8,1.55089264]
[1763664706781,0.5580895,2813.3,2811.8,1.55089264]
[1763664706782,0.5580895,2813.3,2812.2,1.31249664]
[1763664706967,0.4526,2813.2,2812.2,1.31249664]
[1763664707378,0.4526,2813.2,2812.2,0.90699264]
[1763664707961,0.1878,2813.4,2812.2,1.36999264]
[1763664708265,0.1878,2813.4,2812.3,0.85429068]
[1763664708478,30.4526,2813.3,2811.8,0.1819]
[1763664708680,0.4526,2813.2,2811.8,0.1819]
[1763664709180,30.0,2813.1,2811.8,0.001]
[1763664709347,5.425,2813.1,2811.8,0.001]
[1763664709549,0.58776,2813.0,2811.8,1.31349664]
[1763664709752,0.4526,2813.0,2811.9,0.463]
[1763664709958,0.4526,2813.0,2811.9,0.42735852]
[1763664710498,0.4526,2813.0,2811.9,0.405504]
[1763664710995,0.55812721,2812.8,2811.9,0.405504]
[1763664711353,0.55812721,2812.8,2812.2,1.31249664]
[1763664711797,0.55812721,2812.8,2812.4,0.405504]
[1763664711997,0.1878,2814.7,2813.3,0.405504]
[1763664712201,0.4526,2814.6,2812.8,7.17291415]
[1763664712399,0.4526,2814.6,2813.3,7.17291415]
[1763664712602,0.4526,2814.6,2813.4,1.31249664]
[1763664712896,0.4526,2814.6,2813.4,1.77549664]
[1763664713107,0.4526,2814.6,2813.1,0.405504]
[1763664713602,0.4526,2814.6,2813.1,0.868504]
[1763664713794,0.4526,2814.6,2813.1,1.83507422]
[1763664713994,0.1878,2814.7,2813.4,1.31249664]
[1763664714408,0.1878,2814.7,2813.9,0.405504]
[1763664714900,0.6409,2814.9,2813.9,0.405504]
[1763664715276,0.6409,2814.9,2813.8,0.463]
[1763664715803,0.4526,2814.8,2813.8,0.463]
[1763664716406,0.4526,2814.8,2813.5,0.90699264]
[1763664716776,0.4526,2814.8,2813.4,0.405504]
[1763664717312,0.7736979,2814.8,2813.4,0.405504]
[1763664717630,0.9275478,2814.9,2813.6,0.405504]
[1763664717919,0.4526,2814.7,2813.4,0.463]
[1763664718121,0.4526,2814.7,2813.1,0.90699264]
[1763664718307,0.77415129,2814.7,2813.1,1.76128332]
[1763664718493,0.77415129,2814.7,2813.2,0.405504]
[1763664718695,0.4526,2814.6,2813.2,0.868504]
[1763664719224,1.06108929,2814.8,2814.5,7.33881415]
[1763664719436,0.002,2815.0,2814.6,1.77549664]
[1763664719597,0.002,2815.0,2814.8,0.405504]
[1763664719915,0.002,2815.0,2814.6,1.31249664]
[1763664719916,0.002,2815.0,2814.6,0.90699264]
[1763664720126,0.002,2815.0,2814.8,0.463]
[1763664721325,0.002,2815.0,2814.5,0.1659]
[1763664721497,0.002,2815.0,2814.6,0.463]
[1763664722324,0.002,2815.0,2814.7,7.17291415]
[1763664722497,0.002,2815.0,2814.8,0.90699264]
[1763664723023,0.002,2815.0,2814.6,0.405504]
[1763664723323,0.002,2815.0,2814.1,0.1659]
[1763664723324,0.49165678,2815.0,2814.1,0.1659]
[1763664723543,30.0,2814.8,2812.3,0.1453]
[1763664723686,0.1883,2813.9,2812.7,0.48965678]
[1763664724025,0.1883,2813.9,2812.6,0.463]
[1763664724321,0.6409,2813.9,2812.3,7.78121415]
[1763664724484,0.6409,2813.9,2812.8,0.90699264]
[1763664724886,0.1883,2813.9,2813.1,7.17291415]
[1763664725105,0.1883,2813.9,2813.0,0.405504]
[1763664725324,0.4526,2813.8,2812.3,0.1453]
[1763664725525,0.1883,2814.0,2813.0,7.17291415]
[1763664725686,0.6409,2814.0,2813.0,7.17291415]
[1763664725887,0.6409,2814.0,2812.7,0.463]
[1763664726115,0.4526,2813.9,2812.6,7.17291415]
[1763664726433,0.92299725,2813.7,2812.4,7.17291415]
[1763664726720,2.02476938,2813.9,2812.3,0.6083]
[1763664726721,0.4526,2813.9,2812.8,7.17291415]
[1763664726903,0.1883,2814.0,2812.9,0.405504]
[1763664727084,0.6409,2814.3,2813.3,1.31249664]
[1763664727284,0.6409,2814.3,2813.3,0.405504]
[1763664727517,0.6409,2814.3,2813.4,0.1659]
[1763664728621,0.93068643,2814.3,2813.1,1.47839664]
[1763664728815,0.1883,2814.3,2813.1,10.50360917]
[1763664729046,0.1883,2814.3,2813.2,0.4847]
[1763664729406,0.1883,2814.3,2813.3,0.405504]
[1763664729710,1.43825424,2814.9,2813.3,0.405504]
[1763664729711,0.1883,2814.9,2813.9,0.90699264]
[1763664730346,0.1883,2814.9,2813.9,0.85823741]
[1763664730642,0.1883,2814.9,2813.9,1.34293741]
[1763664730842,30.4752,2814.8,2813.1,0.1659]
[1763664731149,0.1849,2813.9,2813.1,0.1659]
[1763664731328,0.32232798,2814.4,2813.1,0.1659]
[1763664731643,0.79752798,2814.4,2813.2,0.4847]
[1763664731806,0.4752,2814.4,2813.2,0.4847]
[1763664732003,0.4752,2814.3,2813.2,0.405504]
[1763664732248,0.79765938,2814.3,2812.5,0.4847]
[1763664732409,1.24545663,2814.2,2812.6,0.81600815]
[1763664732746,1.06529429,2814.1,2812.6,0.81600815]
[1763664733042,0.32245938,2814.0,2812.7,0.405504]
[1763664733234,0.4752,2813.9,2812.6,1.30070815]
[1763664733431,0.4752,2813.9,2812.2,0.4847]
[1763664733619,0.92299725,2813.8,2812.2,0.4847]
[1763664733821,0.32245938,2813.7,2812.2,0.4847]
[1763664734037,0.79765938,2813.7,2812.3,0.63]
[1763664734343,0.32245938,2813.6,2812.3,0.63]
[1763664734545,0.72154915,2813.6,2812.4,8.16008145]
[1763664734757,0.92299725,2814.3,2813.5,0.1659]
[1763664734950,0.4752,2814.1,2812.5,1.79719664]
[1763664735155,0.79795868,2814.1,2812.7,0.405504]
[1763664735447,0.92299725,2813.9,2812.3,0.1453]
[1763664735621,0.92299725,2813.7,2812.4,0.405504]
[1763664735817,1.24575593,2813.6,2812.4,0.405504]
[1763664736016,0.90699264,2814.2,2812.6,0.405504]
[1763664736017,0.4752,2813.7,2812.6,0.405504]
[1763664736248,0.4752,2813.7,2812.6,1.31249664]
[1763664736450,0.79792328,2813.7,2812.3,0.550804]
[1763664736634,0.32272328,2813.6,2812.3,0.74505366]
[1763664736940,0.4752,2813.5,2812.3,0.74505366]
[1763664737722,0.4752,2813.5,2812.3,1.22975366]
[1763664737906,0.4752,2813.5,2812.4,0.890204]
[1763664738408,0.4752,2813.5,2812.3,0.33954966]
[1763664738409,0.79792328,2813.5,2812.3,0.33954966]
[1763664738611,0.4752,2813.5,2812.3,0.82424966]
[1763664738817,0.55799024,2813.3,2812.4,0.405504]
[1763664739052,0.55799024,2813.3,2812.7,0.90699264]
[1763664739253,0.46876724,2813.3,2813.2,0.1659]
[1763664739418,0.4752,2814.3,2813.2,0.1659]
[1763664739419,1.39819725,2814.3,2813.2,0.1659]
[1763664739623,0.32355608,2814.2,2813.2,0.1659]
[1763664739935,0.79875608,2814.3,2813.2,0.1659]
[1763664740140,0.79875608,2814.3,2813.2,0.6506]
[1763664740351,1.72175333,2814.3,2813.2,0.6506]
[1763664740550,0.79875608,2814.2,2813.2,0.1659]
[1763664741142,0.32355608,2814.2,2813.2,0.1659]
[1763664741323,0.4752,2814.1,2813.2,0.1659]
[1763664742251,0.4752,2814.1,2812.7,0.90699264]
[1763664742452,1.54422217,2814.1,2812.8,1.31221141]
[1763664742617,1.06902217,2814.0,2812.8,0.405504]
[1763664742817,0.32355608,2813.9,2813.1,0.90699264]
[1763664743080,1.06978322,2814.2,2813.1,0.90699264]
[1763664743222,0.32431713,2814.1,2813.2,0.1659]
[1763664743419,0.79951713,2814.3,2813.2,0.1659]
[1763664743649,0.72199805,2814.2,2813.2,0.1659]
[1763664743856,0.32431713,2814.1,2813.2,0.1659]
[1763664744049,0.32431713,2814.1,2813.2,0.6506]
[1763664744253,0.74546609,2814.3,2813.3,0.405504]
[1763664744454,0.32458449,2814.2,2813.3,0.890204]
[1763664744675,0.32458449,2814.3,2813.3,0.890204]
[1763664744879,0.32458449,2814.3,2813.5,0.405504]
[1763664745078,0.32458449,2814.4,2813.5,0.405504]
[1763664745289,1.54525058,2814.5,2813.5,0.405504]
[1763664745592,1.07005058,2814.4,2813.2,0.1659]
[1763664745798,0.32458449,2814.3,2813.2,0.1659]
[1763664745957,0.79978449,2814.3,2813.2,0.1659]
[1763664746152,0.32458449,2814.2,2813.2,0.1659]
[1763664746354,0.32458449,2814.2,2813.3,0.405504]
[1763664746568,1.54525058,2814.3,2813.3,0.405504]
[1763664746772,0.32458449,2814.2,2813.3,0.890204]
[1763664747069,0.4584,2813.4,2813.1,0.001]
[1763664747283,30.4752,2814.2,2813.1,0.001]
[1763664747284,0.92299725,2814.0,2813.1,0.001]
[1763664747586,0.32458449,2813.9,2813.2,0.1659]
[1763664747788,1.54808773,2813.9,2813.1,0.001]
[1763664747952,1.54808773,2813.9,2813.1,0.1669]
[1763664747953,0.32469435,2813.8,2813.1,0.1669]
[1763664748151,0.4752,2813.9,2813.1,0.1669]
[1763664748496,1.07255452,2814.2,2813.1,0.6516]
[1763664748654,0.32467537,2814.1,2813.2,0.405504]
[1763664749054,0.4752,2814.2,2813.2,2.76114445]
[1763664749286,0.4752,2814.2,2813.2,1.85415181]
[1763664749491,0.79987537,2814.2,2813.2,1.85415181]
[1763664749659,0.4752,2814.2,2813.2,1.85415181]
[1763664749986,0.55784537,2814.0,2813.2,1.85415181]
[1763664750197,0.55784537,2814.0,2813.3,0.76220444]
[1763664750497,0.55784537,2814.0,2813.4,0.405504]
[1763664750652,0.002,2814.3,2813.6,0.90699264]
[1763664750858,0.002,2814.3,2813.6,1.37639264]
[1763664752792,0.002,2814.3,2814.2,0.4852]
[1763664752997,0.002,2814.3,2814.2,0.890704]
[1763664753198,0.002,2814.3,2814.2,2.30741181]
[1763664754761,0.002,2815.0,2814.3,0.405504]
[1763664756899,0.002,2815.0,2814.5,1.31249664]
[1763664757102,0.002,2815.0,2814.9,0.890704]
[1763664757304,0.002,2815.0,2814.9,9.47307809]
[1763664757597,0.002,2815.0,2814.9,10.8897859]
[1763664759180,0.002,2815.0,2814.9,9.94247809]
[1763664759863,0.002,2815.0,2814.9,9.47307809]
[1763664760280,0.55781604,2815.2,2815.0,1.31249664]
[1763664760591,0.55781604,2815.2,2815.1,1.529904]
[1763664760791,0.002,2816.5,2815.2,0.405504]
[1763664760989,0.002,2816.5,2816.1,0.6197]
[1763664761187,0.002,2816.5,2816.1,1.025204]
[1763664761388,0.002,2816.5,2816.1,0.1453]
[1763664761990,0.002,2816.5,2815.9,0.1453]
[1763664763069,0.002,2816.5,2815.7,0.1453]
[1763664763264,0.4997,2816.3,2815.4,0.405504]
[1763664764583,0.4997,2816.3,2815.4,0.60449774]
[1763664764789,0.55746854,2816.1,2815.4,0.60449774]
[1763664764991,0.4997,2816.4,2815.7,0.90699264]
[1763664766009,0.002,2816.5,2815.7,0.90699264]
[1763664766010,0.5017,2816.2,2815.7,0.90699264]
[1763664766190,0.5017,2816.2,2815.2,1.31249664]
[1763664766392,0.5017,2816.2,2815.1,0.1661]
[1763664766907,0.002,2816.2,2815.2,0.405504]
[1763664767092,0.4997,2816.1,2815.2,1.31249664]
[1763664767603,0.4997,2816.1,2815.2,2.27628445]
[1763664768507,0.002,2816.2,2815.2,2.27628445]
[1763664768508,0.002,2816.2,2815.2,1.31249664]
[1763664768671,0.4997,2816.1,2814.9,0.571604]
[1763664769073,0.4997,2816.1,2815.3,0.405504]
[1763664769273,0.002,2816.2,2815.3,0.405504]
[1763664769605,0.002,2816.2,2815.3,0.889404]
[1763664770109,0.4997,2816.1,2814.9,0.1661]
[1763664770611,0.4997,2816.1,2815.1,0.405504]
[1763664770814,0.002,2816.2,2815.3,0.405504]
[1763664771111,0.002,2816.2,2815.5,0.405504]
[1763664771874,0.002,2816.2,2815.4,0.4839]
[1763664773210,0.002,2816.2,2815.6,7.67538145]
[1763664773508,0.002,2816.2,2816.1,8.70058545]
[1763664773686,0.002,2816.2,2816.1,9.60757809]
[1763664774009,0.002,2816.2,2816.1,10.09147809]
[1763664775313,0.002,2816.5,2816.2,1.31249664]
[1763664775498,0.002,2816.5,2816.4,0.879904]
[1763664776209,0.002,2816.5,2816.4,1.54249366]
[1763664778089,0.002,2816.5,2816.4,1.57799998]
[1763664778270,0.002,2816.5,2816.4,1.54249366]
[1763664780379,0.002,2816.5,2816.4,1.363804]
[1763664780706,0.002,2816.5,2816.4,0.879904]
[1763664780872,0.002,2816.5,2816.4,1.363804]
[1763664781495,0.002,2816.5,2816.4,0.879904]
[1763664781708,0.002,2816.8,2816.4,1.39931032]
[1763664781919,0.002,2816.8,2816.7,9.46227809]
[1763664782319,0.002,2816.8,2816.7,10.9407959]
[1763664782522,0.002,2816.8,2816.7,9.9824959]
[1763664782835,0.002,2816.8,2816.7,8.98787809]
[1763664783136,0.002,2816.8,2816.7,0.90699264]
[1763664783335,0.002,2816.8,2816.7,1.31249664]
[1763664783709,0.002,2816.8,2816.7,0.5415529]
[1763664783909,0.002,2816.8,2816.7,0.879904]
[1763664784339,0.002,2816.8,2816.7,0.405504]
[1763664785210,0.002,2816.8,2816.4,0.4839]
[1763664785546,0.002,2816.8,2816.4,1.37229502]
[1763664785730,0.002,2816.8,2816.4,2.27928766]
[1763664786121,0.5017,2816.8,2816.1,0.1453]
[1763664786324,0.002,2816.8,2816.1,0.1453]
[1763664786505,0.5017,2816.8,2816.1,1.05229264]
[1763664786701,0.5017,2816.8,2816.1,0.1453]
[1763664786904,0.5017,2816.8,2815.9,0.90699264]
[1763664787237,0.5017,2816.8,2816.0,0.85823741]
[1763664787449,0.5017,2816.8,2815.9,0.90699264]
[1763664788027,0.5017,2816.8,2816.0,0.405504]
[1763664788641,0.55724278,2816.7,2816.0,0.405504]
[1763664788864,0.55724278,2816.7,2816.1,7.17563825]
[1763664789160,0.002,2816.8,2816.5,7.17563825]
[1763664789472,0.002,2816.8,2816.6,0.405504]
[1763664789758,0.002,2816.8,2816.6,0.890104]
[1763664790326,0.4915,2816.7,2816.6,0.890104]
[1763664790527,0.002,2816.8,2816.6,0.890104]
[1763664790729,0.002,2816.8,2816.6,0.4846]
[1763664790943,0.9761,2816.7,2816.2,0.90699264]
[1763664791259,0.002,2816.8,2816.6,1.95076458]
[1763664791461,0.4915,2816.7,2816.6,1.95076458]
[1763664791673,0.002,2816.8,2816.6,1.95076458]
[1763664791838,0.002,2816.8,2816.7,0.91264028]
[1763664792041,0.002,2816.8,2816.7,2.78493292]
[1763664792376,0.002,2816.8,2816.7,0.91264028]
[1763664792869,0.002,2816.8,2816.7,2.28344428]
[1763664793026,0.002,2816.8,2816.7,0.91264028]
[1763664793365,0.002,2816.8,2816.7,1.31814428]
[1763664794740,0.4935,2816.8,2816.7,0.405504]
[1763664794939,0.9781,2816.8,2816.6,1.04377194]
[1763664795178,0.002,2816.8,2816.6,1.04377194]
[1763664795482,0.002,2816.8,2816.6,8.21941019]
[1763664795871,0.002,2816.8,2816.7,0.405504]
[1763664797255,0.002,2817.1,2816.7,1.79209664]
[1763664797454,0.002,2817.1,2817.0,7.58114225]
[1763664797649,0.4935,2817.1,2817.0,7.58114225]
[1763664797846,0.002,2817.1,2817.0,7.58114225]
[1763664798641,0.9781,2817.1,2816.7,0.90699264]
[1763664798846,0.4866,2817.1,2816.6,8.21941019]
[1763664799179,0.4915,2816.7,2816.6,1.04377194]
[1763664799365,0.4915,2816.7,2816.0,7.17563825]
[1763664799569,0.4915,2816.7,2815.8,0.4857]
[1763664799570,0.4846,2816.9,2816.5,0.4915]
[1763664800748,0.4846,2816.9,2816.6,0.405504]
[1763664801167,0.002,2817.1,2816.8,7.17563825]
[1763664801365,0.002,2817.1,2816.9,0.405504]
[1763664801860,0.9761,2817.0,2816.9,0.405504]
[1763664802261,0.9761,2817.0,2816.5,0.90699264]
[1763664802465,0.002,2817.1,2816.4,7.17563825]
[1763664802466,0.6627,2816.9,2816.7,0.9761]
[1763664802669,0.1781,2816.9,2816.7,0.9761]
[1763664802985,0.9761,2816.8,2816.5,0.406504]
[1763664803284,0.9761,2816.8,2816.5,0.891104]
[1763664803592,0.1781,2816.6,2816.5,0.4856]
[1763664804095,0.1781,2816.6,2816.5,0.001]
[1763664804096,0.6627,2816.6,2816.5,0.001]
[1763664804264,0.92987666,2816.6,2816.5,0.001]
[1763664804462,1.25633701,2816.6,2816.5,0.001]
[1763664804696,2.00782787,2816.6,2816.5,0.001]
[1763664804897,2.93894329,2816.6,2816.5,0.001]
[1763664805258,2.00782787,2816.6,2816.5,0.001]
[1763664805464,2.56514288,2816.6,2816.5,0.001]
[1763664806201,2.5648507,2816.6,2816.5,0.001]
[1763664808682,2.5645169,2816.6,2816.5,0.001]
[1763664809074,2.5645169,2816.6,2816.2,0.001]
[1763664809075,1.81302604,2816.6,2816.2,0.001]
[1763664809258,1.42680522,2816.3,2815.9,0.001]
[1763664809463,1.42680522,2816.3,2815.1,0.406504]